Cogmind - Beta 15 @@@ ROGUE MODE // 2025.05.25 @ 16:20:39 Player: Figgis Result: Destroyed by Y-45 Defender with Beam Rifle Performance ------------- Evolutions (2) 1000 Regions Visited (6) 1200 Robots Destroyed (64) 320 Value Destroyed (2196) 2196 Prototype IDs (1) 20 Alien Tech Used (0) 0 Bonus (113) 113 TOTAL SCORE: 4849 Bonus ------- Follower Combat Kills 113 Cogmind --------- Core Integrity 0/550 Matter 276/300 Energy 275/275 System Corruption 0% Temperature Cool (9) Movement Walking (190) Ox1 Location -8/Storage Parts ------- > --- POWER (1) -------- Deuterium Engine > --- PROPULSION (4) --- Aluminum Leg Aluminum Leg Aluminum Leg Carbon-fiber Leg > --- UTILITY (4) ------ High-capacity Storage Unit Advanced Targeting Computer Hardlight Generator Hacking Suite > --- WEAPON (2) ------- Heavy Assault Rifle Minigun > --- INVENTORY (20) --- Nuclear Core Nuclear Core Light Nuclear Core Aluminum Leg Improved Aluminum Leg Coolant Injector Advanced Weight Redist. System Advanced Weight Redist. System Improved Targeting Computer Advanced Targeting Computer Light Armor Plating Beamcaster Minigun Assault Cannon Heavy Rocket Launcher Heavy Rocket Launcher Heavy Rocket Launcher Heavy Rocket Launcher Remote Datajack Mining Laser Peak State ------------ > --- POWER ------------ Nuclear Core > --- PROPULSION ------- Carbon-fiber Leg Carbon-fiber Leg VSS Leg VSS Leg > --- UTILITY ---------- High-capacity Storage Unit Improved Targeting Computer Matter Filter Hacking Suite > --- WEAPON ----------- Minigun Minigun > --- INVENTORY -------- Deuterium Engine Nuclear Core Nuclear Core Light Nuclear Core Coolant Injector Advanced Weight Redist. System Advanced Weight Redist. System Improved Targeting Computer Light Armor Plating Hardlight Generator Beamcaster Minigun Minigun Assault Cannon Heavy Rocket Launcher Heavy Rocket Launcher Heavy Rocket Launcher Heavy Rocket Launcher Remote Datajack Mining Laser [Rating: 37] Favorites ----------- Power Nuclear Core Engine Ion Engine Power Core Nuclear Core Propulsion Aluminum Leg Leg Aluminum Leg Utility High-capacity Storage Unit Device Advanced Weight Redist. System Storage High-capacity Storage Unit Processor Targeting Computer Hackware Hacking Suite Protection Light Armor Plating Weapon Minigun Energy Gun Small Laser Ballistic Gun Minigun Ballistic Cannon Assault Cannon Special Weapon Mining Laser Build | -11 -10 -10 -10 -9 -8 -8 ------- Run | Yrd Mat Min Exi Min Mat Sto Slots Evolved 4 | . . . . . 4 . Power . | . . . . . . . Propulsion 2 | . . . . . 2 . Utility 2 | . . . . . 2 . Weapon . | . . . . . . . Parts Attached 54 | 4 2 1 2 2 32 11 Power 5 | . 1 . . . 3 1 Engine 3 | . 1 . . . 1 1 Core 2 | . . . . . 2 . Reactor . | . . . . . . . Propulsion 15 | 2 . . . . 8 5 Treads . | . . . . . . . Leg 15 | 2 . . . . 8 5 Wheel . | . . . . . . . Hover . | . . . . . . . Flight . | . . . . . . . Utility 18 | . 1 . 2 . 14 1 Device 5 | . . . . . 5 . Storage 3 | . 1 . 1 . 1 . Processor 4 | . . . 1 . 3 . Hackware 1 | . . . . . 1 . Protection 5 | . . . . . 4 1 Artifact . | . . . . . . . Weapon 16 | 2 . 1 . 2 7 4 Energy Gun 4 | 2 . . . . 2 . Energy Cannon . | . . . . . . . Ballistic Gun 10 | . . . . 2 4 4 Ballistic Cannon 1 | . . . . . 1 . Launcher . | . . . . . . . Special Weapon 1 | . . 1 . . . . Impact Weapon . | . . . . . . . Slashing Weapon . | . . . . . . . Piercing Weapon . | . . . . . . . Special Melee Weapon . | . . . . . . . Unidentified Prototypes 1 | . . . . . 1 . Parts Lost 20 | . . . . . 11 9 Power 2 | . . . . . 1 1 Propulsion 11 | . . . . . 6 5 Utility 4 | . . . . . 3 1 Weapon 3 | . . . . . 1 2 Highest Loss Streak 7 | . . . . . 7 3 To Critical Strikes . | . . . . . . . Average Backups 13 | 2 4 6 7 7 14 19 Power 3 | . 1 1 1 1 3 3 Propulsion . | . . . . . . . Utility 3 | . . 1 2 2 3 5 Weapon 5 | 1 3 4 4 4 5 8 Tool/Special . | . . . . . . . Unused Backups 23 | . . . . . 8 15 Power 4 | . . . . . 2 2 Propulsion 2 | . . . . . . 2 Utility 8 | . . . . . 3 5 Weapon 7 | . . . . . 2 5 Tool/Special 2 | . . . . . 1 1 Average Slot Usage (%) 89 | . 84 85 85 100 89 94 Engine 5 | . 14 14 14 14 2 4 Core 4 | . . . . . 6 3 Leg 31 | . 28 28 28 28 32 32 Device 5 | . . . . . 6 5 Storage 9 | . 13 14 14 14 9 9 Processor 7 | . . . . 14 8 9 Hackware 2 | . . . . . 1 9 Protection 3 | . . . . . 4 3 Energy Gun 5 | . 28 27 14 . 2 . Ballistic Gun 8 | . . . . 26 8 16 Ballistic Cannon 4 | . . . . . 6 . Peak Build Rating 37 | 4 6 6 7 7 37 35 Average Rating 22 | 2 5 6 6 7 25 30 On Entrance 9 | . 4 6 6 7 7 33 Naked Turns . | . . . . . . . Heaviest Build 60 | 3 13 13 17 17 58 60 Greatest Support 63 | 3 20 20 20 20 63 57 Greatest Overweight (x) 3 | . . . . . 3 2 Average Overweight (x) . | . . . . . . . Largest Inventory Capacity 20 | 5 8 8 10 10 20 20 Average Capacity 16 | 5 7 8 8 10 18 20 Most Carried 20 | 4 6 8 8 7 20 20 Average Carried 13 | 2 4 6 7 7 14 19 Final Capacity 20 | 5 8 8 10 10 20 20 Final Carried 20 | 4 6 8 7 7 20 20 Class Distribution -------------------- 77% | Mutant 22% | Scavenger-Mutant Dominant Class ---------------- Mutant | -10/Materials Mutant | -10/Mines Mutant | -10/Exiles Mutant | -9/Mines Mutant | -8/Materials Mutant | -8/Storage Resources | -11 -10 -10 -10 -9 -8 -8 ----------- Run | Yrd Mat Min Exi Min Mat Sto Matter Collected 1953 | 183 25 52 . 50 744 899 Remotely . | . . . . . . . Salvage Created 2342 | . 48 65 . . 841 1388 Parts 150 | . 6 4 . . 62 78 Haulers Intercepted 2 | . . . . . 1 1 Recyclers Shooed 2 | . . . . . . 2 Parts Field Recycled . | . . . . . . . Retrieved Matter . | . . . . . . . Parts Self-Destructed . | . . . . . . . Prevented . | . . . . . . . Kills | -11 -10 -10 -10 -9 -8 -8 ------- Run | Yrd Mat Min Exi Min Mat Sto Combat Hostiles Destroyed 52 | . 3 3 . . 21 25 Guns 41 | . 2 3 . . 11 25 Cannons 9 | . . . . . 9 . AOE 1 | . . . . . 1 . Classes Destroyed 11 | . 2 . . . 9 . Worker 4 | . 1 1 . . . 2 Builder 1 | . . . . . 1 . Hauler 2 | . . . . . 1 1 Recycler 1 | . . . . . 1 . Operator 1 | . . . . . 1 . Watcher 3 | . . . . . 2 1 Swarmer 11 | . 3 3 . . 5 . Grunt 21 | . . . . . 5 16 Duelist 3 | . . . . . 2 1 Sentry 14 | . . . . . 6 8 Hunter 3 | . . . . . 3 . Best Kill Streak 10 | . 4 4 . . 6 10 Combat Bots Only 9 | . 3 3 . . 6 9 Max Kills in Single Turn 2 | . 1 1 . . 1 2 Gunslinging . | . . . . . . . Exploded 1 | . . . . . 1 . Melee . | . . . . . . . Uniques/NPCs Destroyed . | . . . . . . . Combat | -11 -10 -10 -10 -9 -8 -8 -------- Run | Yrd Mat Min Exi Min Mat Sto Hostile Shots Fired 333 | . 30 11 . . 181 111 Missed 76 | . 10 3 . . 34 29 Hits 257 | . 20 8 . . 147 82 Melee 3 | . . . . . 1 2 Projectile 254 | . 20 8 . . 146 80 Critical Strikes 8 | . . . . . 4 4 Damage Taken 3445 | . 186 64 . . 1892 1303 Core 619 | . 41 18 . . 337 223 Absorbed by Shields 8 | . . . . . . 8 Regen/Repaired (Parts) 197 | . . . . . 197 . Core Remaining (%) 88 | 100 . . . 76 . . Volleys Fired 211 | . 14 7 . . 107 83 Largest 2 | . 2 2 . . 2 2 Hottest 102 | . 90 100 . . 102 50 Shots Fired 398 | . 28 13 . . 196 161 Gun 323 | . 28 12 . . 122 161 Cannon 73 | . . . . . 73 . Launcher . | . . . . . . . Special 2 | . . 1 . . 1 . Kinetic 319 | . . . . . 158 161 Thermal 79 | . 28 13 . . 38 . Explosive . | . . . . . . . Electromagnetic . | . . . . . . . Robot Hit Streak 18 | . 6 2 . . 9 18 Robot Miss Streak 7 | . 3 4 . . 7 3 Penetration Max . | . . . . . . . Secondary Targets 4 | . . 1 . . . 3 Max Gunslinging Chain 1 | . . 1 . . . 1 Shots Hit Robots 255 | . 16 5 . . 105 129 Core Hits 111 | . 3 4 . . 48 56 Critical Kills 1 | . . . . . . 1 Critical Parts Destroyed . | . . . . . . . Critical Strikes 2 | . . . . . 1 1 Destroy 1 | . . . . . . 1 Blast 1 | . . . . . 1 . Melee Attacks . | . . . . . . . Impact . | . . . . . . . Slashing . | . . . . . . . Piercing . | . . . . . . . Sneak Attacks . | . . . . . . . Combat Hostiles . | . . . . . . . Follow-up Attacks . | . . . . . . . Damage Inflicted 4622 | . 206 99 . . 2059 2258 Guns 3498 | . 206 99 . . 952 2241 Cannons 908 | . . . . . 908 . Explosions 194 | . . . . . 194 . Melee . | . . . . . . . Ramming 22 | . . . . . 5 17 Kinetic 3769 | . . . . . 1528 2241 Thermal 637 | . 206 99 . . 332 . Explosive 194 | . . . . . 194 . Electromagnetic . | . . . . . . . Impact . | . . . . . . . Slashing . | . . . . . . . Piercing . | . . . . . . . Highest Corruption . | . . . . . . . Average Corruption . | . . . . . . . Corruption Purged . | . . . . . . . Corruption Blocked . | . . . . . . . Overload Shots . | . . . . . . . Overflow Damage 49 | . . . . . 49 . Projectiles 2 | . . . . . 2 . Explosions 47 | . . . . . 47 . Melee . | . . . . . . . Knockbacks 7 | . . . . . 7 . Impact . | . . . . . . . Kinetic 7 | . . . . . 7 . Secondary . | . . . . . . . Self-Inflicted Damage . | . . . . . . . Shots . | . . . . . . . Rammed . | . . . . . . . Targets Rammed 4 | . . . . . 2 2 Kicked 4 | . . . . . 2 2 Crushed . | . . . . . . . Highest Temperature 553 | . 360 180 . . 553 89 Average Temperature 102 | . 199 80 . . 116 21 Received Heat Transfer 1312 | . 12 . . . 603 697 Effects 10 | . 1 . . . 9 . Shutdowns 3 | . 1 . . . 2 . Energy Bleed 2 | . . . . . 2 . Interference 3 | . . . . . 3 . Short Circuit 1 | . . . . . 1 . Damage (minor) 1 | . . . . . 1 . Siege Activations . | . . . . . . . Martial Activations . | . . . . . . . Shielding Activations . | . . . . . . . Robots Disrupted . | . . . . . . . Combat Hostiles . | . . . . . . . Robots Corrupted . | . . . . . . . Combat Hostiles . | . . . . . . . Parts Fried . | . . . . . . . Impact Corruptions . | . . . . . . . Robots Melted 1 | . 1 . . . . . Combat Hostiles 1 | . 1 . . . . . Parts Melted . | . . . . . . . Heat Transferred 1619 | . 545 260 . . 814 . Parts Sabotaged . | . . . . . . . Parts Stolen . | . . . . . . . Parts Stripped . | . . . . . . . Power Chain Reactions . | . . . . . . . Alert | -11 -10 -10 -10 -9 -8 -8 ------- Run | Yrd Mat Min Exi Min Mat Sto Maximum Alert Level 1 | . . . . . 1 1 Low Security (%) 86 | 100 100 100 . 100 95 43 Level 1 13 | . . . . . 4 56 Level 2 . | . . . . . . . Level 3 . | . . . . . . . Level 4 . | . . . . . . . Level 5 . | . . . . . . . High Security . | . . . . . . . Max Security . | . . . . . . . Peak Influence 361 | . 75 65 . . 235 361 Initial 45 | . . 7 . . . 45 Average 102 | . 30 18 . . 101 182 Influence Increases 1686 | . 90 75 . . 845 676 Destroy 0b10 Robot/C 1140 | . 60 60 . . 520 500 Destroy 0b10 Robot/NC 60 | . 5 5 . . 30 20 Destroy Leader 310 | . 10 10 . . 166 124 Allied During Kill 22 | . . . . . 22 . Successful Hack 13 | . . . . . 13 . Disable Machine 75 | . . . . . 60 15 Destroy Structure 36 | . . . . . 34 2 Lose Combat Pursuer 30 | . 15 . . . . 15 Influence Decreases 1333 | . 70 95 . . 737 431 Entered New Map 76 | . . 13 . . . 63 Time Decay 1047 | . 70 82 . . 617 278 Lost Part 190 | . . . . . 100 90 Lost Ally 20 | . . . . . 20 . Squads Dispatched 11 | . 3 . . 1 4 3 Investigation 3 | . 1 . . . 2 . Extermination . | . . . . . . . Reinforcement 6 | . 2 . . . 2 2 Assault 1 | . . . . 1 . . Garrison 1 | . . . . . . 1 Intercept . | . . . . . . . Searches Triggered . | . . . . . . . Construction Impeded . | . . . . . . . Haulers Reinforced . | . . . . . . . Active Scanning Responses . | . . . . . . . Cargo Convoy Interrupts . | . . . . . . . Stealth | -11 -10 -10 -10 -9 -8 -8 --------- Run | Yrd Mat Min Exi Min Mat Sto Distress Signals 7 | . . . . . 3 4 Communications Jammed . | . . . . . . . Distress Signals . | . . . . . . . Times Spotted 87 | . 7 9 . . 39 32 Peak Tracking Total 9 | . 3 8 . . 9 5 Tactical Retreats 2 | . 1 . . . . 1 Traps | -11 -10 -10 -10 -9 -8 -8 ------- Run | Yrd Mat Min Exi Min Mat Sto Traps Triggered 4 | . 1 . . . 3 . Indirectly . | . . . . . . . Trap Hack Attempts . | . . . . . . . Triggered . | . . . . . . . Disarmed . | . . . . . . . Reprogrammed . | . . . . . . . Reused . | . . . . . . . Traps Extracted . | . . . . . . . Installed . | . . . . . . . Triggered . | . . . . . . . Machines | -11 -10 -10 -10 -9 -8 -8 ---------- Run | Yrd Mat Min Exi Min Mat Sto Machines Disabled 5 | . . . . . 4 1 Max in Single Turn 2 | . . . . . 2 1 Garrison Access 1 | . . . . . 1 . Machines Repaired . | . . . . . . . Machines Dismantled . | . . . . . . . Machines Sabotaged . | . . . . . . . Overloaded Fab Kills . | . . . . . . . Hacking | -11 -10 -10 -10 -9 -8 -8 --------- Run | Yrd Mat Min Exi Min Mat Sto Machines Accessed 14 | . 2 . . . 11 1 Terminals 7 | . 1 . . . 6 . Fabricators . | . . . . . . . Repair Stations 2 | . . . . . 2 . Recycling Units 4 | . 1 . . . 2 1 Scanalyzers . | . . . . . . . Garrison Access 1 | . . . . . 1 . Total Hacks 26 | . 3 . . . 22 1 Successful 12 | . 2 . . . 9 1 Failed 13 | . . . . . 13 . Catastrophic 7 | . . . . . 7 . Database Lockouts 1 | . 1 . . . . . Manual 9 | . 2 . . . 7 . Terminals 13 | . 2 . . . 11 . Fabricators . | . . . . . . . Repair Stations 4 | . . . . . 4 . Recycling Units 7 | . 1 . . . 5 1 Scanalyzers . | . . . . . . . Garrison Access 2 | . . . . . 2 . Terminal Hacks 4 | . 1 . . . 3 . Robot Analysis 1 | . 1 . . . . . Branch Access Points 1 | . . . . . 1 . Scanalyzer Index 1 | . . . . . 1 . Registered Components 1 | . . . . . 1 . Fabricator Hacks . | . . . . . . . Repair Station Hacks 4 | . . . . . 4 . Scan Component 2 | . . . . . 2 . Repair 2 | . . . . . 2 . Recycling Unit Hacks 3 | . 1 . . . 1 1 Report Inventory 1 | . 1 . . . . . Retrieve Components 2 | . . . . . 1 1 Scanalyzer . | . . . . . . . Garrison Access Hacks 1 | . . . . . 1 . Seal Access 1 | . . . . . 1 . Unauthorized Hacks . | . . . . . . . Terminals . | . . . . . . . Fabricators . | . . . . . . . Repair Stations . | . . . . . . . Recycling Units . | . . . . . . . Scanalyzers . | . . . . . . . Garrison Access . | . . . . . . . Data Cores Recovered 1 | . . . . . 1 . Used . | . . . . . . . Hacking Detections 9 | . 1 . . . 8 . Full Trace Events 1 | . . . . . 1 . Feedback Events . | . . . . . . . Feedback Blocked . | . . . . . . . Robot Schematics Acquired . | . . . . . . . Robots Built . | . . . . . . . Authchips . | . . . . . . . Time . | . . . . . . . Total Robot Build Rating . | . . . . . . . Part Schematics Acquired . | . . . . . . . Parts Built . | . . . . . . . Authchips . | . . . . . . . Time . | . . . . . . . Total Part Build Rating . | . . . . . . . Parts Repaired 2 | . . . . . 2 . Time 76 | . . . . . 76 . Parts Recycled . | . . . . . . . Recycled Matter . | . . . . . . . Retrieved Matter . | . . . . . . . Retrieved Components 19 | . . . . . 10 9 Parts Scanalyzed . | . . . . . . . Part Schematics Acquired . | . . . . . . . Parts Damaged . | . . . . . . . Bothacking | -11 -10 -10 -10 -9 -8 -8 ------------ Run | Yrd Mat Min Exi Min Mat Sto Used RIF Installer . | . . . . . . . Robots Hacked . | . . . . . . . Non-combat . | . . . . . . . Combat . | . . . . . . . Robot Hacks Applied . | . . . . . . . Relay Couplers Released . | . . . . . . . Fabnet Peak Effective % . | . . . . . . . Robots Rewired . | . . . . . . . Allies Hacked . | . . . . . . . Hacks Repelled . | . . . . . . . Allies | -11 -10 -10 -10 -9 -8 -8 -------- Run | Yrd Mat Min Exi Min Mat Sto Total Allies 3 | . . 2 . 1 . . Largest Group 2 | . . 2 1 1 1 . Highest-Rated Group 42 | . . 42 31 31 31 . Highest-Rated Ally 31 | . . 31 31 31 31 . Total Orders . | . . . . . . . Ally Attacks 22 | . . 5 . . 17 . Total Damage 314 | . . 82 . . 232 . Kills 6 | . . 1 . . 5 . Allies Corrupted . | . . . . . . . Allies Melted . | . . . . . . . Intel | -11 -10 -10 -10 -9 -8 -8 ------- Run | Yrd Mat Min Exi Min Mat Sto Active Infowar (turns) . | . . . . . . . Robot Analysis Total 1 | . 1 . . . . . Derelict Logs Recovered 1 | . . 1 . . . . Drone Launches . | . . . . . . . Drone Recoveries . | . . . . . . . Exploration | -11 -10 -10 -10 -9 -8 -8 ------------- Run | Yrd Mat Min Exi Min Mat Sto Turns Passed 3600 | 31 207 257 180 56 2268 601 Spaces Moved 1994 | 37 131 188 148 45 1260 185 Core 38 | 37 . . . . 1 . Treads . | . . . . . . . Legs 1956 | . 131 188 148 45 1259 185 Wheels . | . . . . . . . Hover . | . . . . . . . Flight . | . . . . . . . Fastest Speed 50 | 50 120 120 120 120 100 112 Average Speed 131 | 50 120 120 120 120 134 158 Slowest Speed 260 | 50 120 120 120 120 200 260 Overloaded Moves . | . . . . . . . Propulsion Burnouts . | . . . . . . . Robots Hopped . | . . . . . . . Potential Cave-ins . | . . . . . . . Cave-ins Triggered . | . . . . . . . Exploration Rate (%) 36 | 4 23 48 48 9 75 49 Regions Visited 6 Branch Regions 4 Pre-discovered Areas 1 | . . 1 . . . . Known Exits Taken 2 | . . 1 . . 1 . Unknown Exits Taken 4 | 1 1 . 1 1 . . Scrap Searched 2 | . . 1 . 1 . . Spaces Dug 6 | . . . . . 6 . Terrain Destroyed 31 | . . . . . 31 . Melee . | . . . . . . . Projectile 16 | . . . . . 16 . AOE 15 | . . . . . 15 . Terrain Rammed . | . . . . . . . Walls Destroyed . | . . . . . . . Machines Disabled . | . . . . . . . Actions | -11 -10 -10 -10 -9 -8 -8 --------- Run | Yrd Mat Min Exi Min Mat Sto Total 2610 | 48 153 204 150 46 1653 356 Wait 245 | . 3 7 . . 175 60 Move 1988 | 36 130 187 147 44 1259 185 Hop . | . . . . . . . Pick Up 67 | 8 4 2 . . 45 8 Fast Attach 10 | . . . 1 . 7 2 Attach 36 | 4 2 . 1 . 22 7 Detach 3 | . . . . . 3 . Swap 21 | . . 1 . 2 12 6 Drop 25 | . . . 1 . 21 3 Fire 211 | . 14 7 . . 107 83 Melee . | . . . . . . . Ram . | . . . . . . . Kick 4 | . . . . . 2 2 Crush . | . . . . . . . Escape Stasis . | . . . . . . . Rewire . | . . . . . . . Trap . | . . . . . . . Miscellaneous . | . . . . . . . Route ------- -11/Scrapyard -10/Materials -10/Mines (discovered 2 exits: [*Mat] / *Exi) -10/Exiles -9/Mines -8/Materials (discovered 3 exits: [*Fac x2] / *Sto) -8/Storage History --------- Turn | Location | Event 16 | -11/Scrapyard | Discovered new exit (range 16) 32 | -11/Scrapyard | Entered Materials 158 | -10/Materials | Met 8R-AWN 205 | -10/Materials | Discovered new exit (range 5) 218 | -10/Materials | Central database locked down 239 | -10/Materials | Entered Mines 240 | -10/Mines | Learned location of Storage (-8) 241 | -10/Mines | Followed 8R-AWN into the Mines 242 | -10/Mines | Identified exit to Exiles 292 | -10/Mines | Discovered new exit (range 15) 301 | -10/Mines | Build established: Mutant 445 | -10/Mines | Assembled infested the area 496 | -10/Mines | Entered Exiles 496 | -10/Exiles | Accompanied by 1 ally 525 | -10/Exiles | Welcomed by 8R-AWN 526 | -10/Exiles | Led the pair of lost Derelicts to a safe place 546 | -10/Exiles | Met EX-HEX 594 | -10/Exiles | Met EX-DEC 662 | -10/Exiles | Discovered new exit (range 14) 676 | -10/Exiles | Entered Mines 677 | -9/Mines | Met a Derelict testing a Signal Generator 695 | -9/Mines | Met a Derelict bent on vengeance 708 | -9/Mines | Discovered new exit (range 5) 732 | -9/Mines | Entered Materials 732 | -8/Materials | Accompanied by 1 ally 732 | -8/Materials | Evolved 4 slots: Propulsion x2, Utility x2 1295 | -8/Materials | Build established: Scavenger-Mutant 1383 | -8/Materials | Repaired Assault Cannon 1514 | -8/Materials | Core integrity fell below 50% 1548 | -8/Materials | Lost 7 parts (1p4n1u1w) 1757 | -8/Materials | Build established: Mutant 1856 | -8/Materials | Repaired Assault Cannon 2065 | -8/Materials | Discovered new exit (range 5) 2363 | -8/Materials | Discovered new exit (range 12) 2530 | -8/Materials | Discovered new exit (range 3) 2893 | -8/Materials | Identified exit to Storage 3000 | -8/Materials | Entered Storage 3249 | -8/Storage | Destroyed 9 combat bots 3250 | -8/Storage | Lost 3 parts (1p1n1u) 3278 | -8/Storage | Core integrity fell below 20% 3332 | -8/Storage | Lost 3 parts (2n1w) 3547 | -8/Storage | Garrison activated, responded to threat 3601 | -8/Storage | Destroyed by Y-45 Defender with Beam Rifle Last Messages --------------- 03527_ K-01 Serf cleans the Transfer Shaft. 03527_ K-01 Serf collects debris. 03530_ K-01 Serf cleans the Transfer Shaft. 03530_ K-01 Serf collects debris. 03532_ Acquired Aluminum Leg. 03535_ K-01 Serf cleans the Terminal. 03541_ Acquired 21 matter. 03547_ W-25 Informer calls for garrison support. 03547_ ALERT: Activating Garrison Access S001. 03562_ R-06 Scavenger collects Beam Rifle. 03569_ R-06 Scavenger collects Imp. Heat Sink. 03570_ Y-45 Defender destroyed. 03571_ K-01 Serf collects debris. 03573_ Acquired 28 matter. 03575_ K-01 Serf collects debris. 03579_ Y-45 Defender destroyed. 03580_ K-01 Serf collects debris. 03582_ Dropped Hvy. Assault Rifle. 03583_ K-01 Serf collects debris. 03585_ R-06 Scavenger collects Lgt. Armor Plating. Map ----- +----------------------------------------------------+ | ??????????????????????????????+ ^ | | ??????????????????????????????# | | ??????????????????????????????# """ | | ??????????????????????????????# """ #####+ | | ??????????????????????????????# ! ^ """ #????? | | ????????????????????????????###!^ #????? | | ???????????????????????????? #!! #????? | | ????????????????????????????" #!] """ #????? | | ????????????????????????????" # """ #????? | | ????????????????????????????" # " #????? | | ???????????????????????????"" "% # ??? | | ???????????????????????????" #=% / ? | | ??????????????????????????" # # | | ????????????????????????? # ##"T"# #??""" | | ????????????????????????####### ###### + ???? | | ??????????????????????????????#% #????? #????? | | ?????????????????????????????## #?????? #????? | | ??????????????????????######## #??????? #????? | | ??????????????????????# # #??????? #????? | | ??????????????????????# # #????????#????? | | ?????????????????????# [!/ / + ????????????? | | ??????????????????????#[!/ # # ??????????? | | ?????????????????##???#[!/ ??# #####?????????? | | ?????????????????#""??# ??# #?????????????? | | ????????????????##"Y"####+##?# #?????????????? | | ????????????????# #@ ### !####??????????? | | ????????????????" """"r/ [% %[^ +????????? | | ???????????????? """"Y# ######+######????????? | | ????????????????? """" #####????? ??????????????? | | ????????????????? """"??????????????????????????? | | ????????????????? ??????????????????????????? | | ?????????????????### ???????????????????????????? | | ???????????????????##???????????????????????????? | | | | | | | | | | | | | | | | | | | | | | | | | | | | | | | | | | | +----------------------------------------------------+ Best States ------------- Heat Dissipation 31 Energy Generation 14 Energy Capacity 275 Matter Stores 300 Matter Capacity 300 Sight Range 16 Terrain Scan Density 10 Additional Mass Support 9 Armor Coverage 300 Evasion (%) 55 Targeting Accuracy 8 Matter Filtering 30 Offensive Hacking 10 Item Schematics ----------------- None Robot Schematics ------------------ None Fabricated ------------ Nothing Repaired ---------- Assault Cannon | 38% | -8/Materials Assault Cannon | 30% | -8/Materials Alien Tech Used ----------------- None Achievements -------------- None Challenges ------------ None Game ------ Seed ThermicCorruptionMultitool Manual? 0 Play Time 00:31:54 Cumulative 150.1 hours Start 2025.05.25 @ 15:49:51 End 2025.05.25 @ 16:20:39 Sessions 1 Manual Loads 0 Difficulty Rogue Special Mode None Game No. 216 Rogue 213 Adventurer 3 Explorer 0 Win Type - Total 1 Types 1/0/0/0/0/0/0/0/0/0 Lore% 34 Gallery% 55 Achievement% 44 Wizard Run 0 Options --------- Layout 0 ASCII 0 Keyboard 0 Movement Mouse Keybinds 0 Fullscreen 2 Font 18/SmallcapsGlow Map View 76x50 Zoom Use 0% Tactical HUD 1 Map Filters NONE Filters NONE Steam 1 RUN: c8eb66ff-bd6f-4487-bf32-588799009b97